bitfinex-derivatives/quotes_ETHF0:USTF0_20250212
["timestamp","ask_amount","ask_price","bid_price","bid_amount"]
[1739378006309,5.12878,2603.0,2602.1,3.2078]
[1739378006610,0.7685,2602.6,2602.0,8.33167771]
[1739378006810,3.2078,2602.5,2602.3,0.76856]
[1739378007304,3.2078,2602.5,2602.0,6.41002771]
[1739378007510,3.2078,2602.5,2602.2,0.7686]
[1739378007711,0.76856,2602.4,2602.2,0.7686]
[1739378007909,3.2078,2602.5,2601.9,2.51494]
[1739378008212,3.97636,2602.5,2602.0,4.51602771]
[1739378008403,3.97636,2602.5,2602.2,0.76859]
[1739378008803,0.76856,2602.4,2602.2,0.76859]
[1739378009002,0.76856,2602.4,2602.0,4.51602771]
[1739378009309,0.7686,2602.3,2602.1,0.76862]
[1739378009511,0.7686,2602.3,2602.2,0.57617518]
[1739378009903,0.5825,2602.4,2602.2,0.57617518]
[1739378009904,1.35106,2602.4,2602.2,1.34478518]
[1739378010103,0.5825,2602.4,2602.2,1.34478518]
[1739378010410,3.2078,2602.5,2602.4,0.76856]
[1739378011505,3.2078,2602.5,2602.0,4.05672533]
[1739378011710,3.2078,2602.5,2601.8,3.78116901]
[1739378011711,0.76865,2602.1,2601.9,0.76869]
[1739378011904,3.2078,2602.2,2601.9,0.7687]
[1739378012105,0.76864,2602.1,2602.0,0.76867]
[1739378012307,0.76864,2602.1,2601.8,3.78116901]
[1739378012511,3.9765,2601.9,2601.8,0.00576901]
[1739378013010,0.76886,2601.4,2601.2,0.7689]
[1739378013810,0.76891,2601.2,2601.0,4.82568533]
[1739378014005,3.2078,2601.1,2601.0,4.05672533]
[1739378014217,3.2078,2601.1,2600.5,0.5934]
[1739378014414,3.2078,2600.7,2600.5,0.5934]
[1739378014612,3.2078,2600.7,2600.5,0.00576901]
[1739378014808,0.76909,2600.6,2600.5,0.00576901]
[1739378016314,1.894,2600.6,2599.7,4.51983149]
[1739378016517,1.894,2600.6,2599.5,3.9772]
[1739378016518,3.2078,2599.9,2599.5,3.9772]
[1739378016711,0.76932,2599.8,2599.4,0.5984]
[1739378017214,0.76932,2599.8,2599.3,4.51983149]
[1739378017410,0.76935,2599.8,2599.2,0.76948]
[1739378017712,0.76942,2599.5,2599.3,0.00576901]
[1739378018014,3.2078,2599.6,2599.3,0.00576901]
[1739378018209,3.97718,2599.6,2599.3,0.00576901]
[1739378018515,0.76941,2599.5,2599.3,0.00576901]
[1739378018710,3.97719,2599.6,2599.3,0.00576901]
[1739378018911,0.76944,2599.5,2599.3,0.00576901]
[1739378020318,0.76944,2599.4,2599.3,0.00576901]
[1739378021119,3.2078,2599.6,2599.3,0.00576901]
[1739378021616,3.97718,2599.6,2599.3,0.00576901]
[1739378021813,3.97719,2599.6,2599.3,0.00576901]
[1739378022119,3.2078,2599.6,2599.3,0.00576901]
[1739378022417,0.76943,2599.5,2599.3,0.00576901]
[1739378022613,3.2078,2599.6,2599.3,0.00576901]
[1739378022814,0.76943,2599.5,2599.3,0.00576901]
[1739378023323,3.9772,2599.6,2599.3,0.00576901]
[1739378023514,0.76942,2599.5,2599.3,0.00576901]
[1739378023709,0.76944,2599.4,2599.3,0.00576901]
[1739378024820,3.2078,2599.6,2598.5,7.72763149]
[1739378025018,0.76955,2599.1,2598.5,4.51983149]
[1739378025222,0.76955,2599.1,2598.8,0.76961]
[1739378025425,0.76955,2599.1,2598.5,4.51983149]
[1739378025617,0.76955,2599.1,2598.7,0.76963]
[1739378026112,3.2078,2599.2,2598.6,0.00576901]
[1739378026822,3.2078,2599.2,2599.0,0.76956]
[1739378027316,3.2078,2599.2,2598.6,0.00576901]
[1739378027722,0.76954,2599.1,2598.6,0.00576901]
[1739378028122,0.76958,2599.0,2598.7,0.76963]
[1739378028319,3.2078,2599.2,2598.6,0.00576901]
[1739378028515,3.2078,2599.2,2598.6,1.92992901]
[1739378028715,3.9773,2599.2,2599.0,0.76955]
[1739378028916,3.2078,2599.2,2599.1,0.76953]
[1739378029219,3.9773,2599.2,2599.0,0.76955]
[1739378029417,3.2078,2599.2,2598.6,0.00576901]
[1739378029923,0.76954,2599.1,2598.9,0.76957]
[1739378030123,0.76956,2599.0,2598.8,0.7696]
[1739378030324,0.76956,2599.0,2598.6,0.00576901]
[1739378030826,0.76956,2599.0,2598.9,0.76959]
[1739378031126,3.97732,2599.2,2599.1,0.76953]
[1739378031825,3.2078,2599.2,2598.6,0.00576901]
[1739378032026,0.76958,2599.0,2598.9,0.76959]
[1739378032419,0.76961,2598.9,2598.8,0.76961]
[1739378033022,0.76961,2598.9,2598.8,0.76962]
[1739378033825,3.2078,2599.2,2598.6,0.00576901]
[1739378034033,0.76957,2599.0,2598.9,0.76959]
[1739378034325,0.76959,2599.0,2598.6,0.00576901]
[1739378034527,0.76959,2599.0,2598.9,0.76959]
[1739378034920,3.97731,2599.2,2598.6,0.00576901]
[1739378035122,3.2078,2599.2,2599.1,0.76953]
[1739378035422,3.9773,2599.2,2599.1,0.76953]
[1739378035618,0.76954,2599.1,2599.0,0.76954]
[1739378035821,3.2078,2599.2,2598.7,0.5938]
[1739378036125,3.2078,2599.2,2598.6,5.9961913]
[1739378036324,0.76961,2598.9,2598.6,4.0719913]
[1739378036526,0.76961,2598.9,2598.8,0.76962]
[1739378037126,0.76961,2598.9,2598.6,4.0719913]
[1739378037320,0.76962,2598.8,2598.7,0.76964]
[1739378037521,0.76962,2598.8,2598.6,4.0719913]
[1739378037729,0.76964,2598.8,2598.6,0.00576901]
[1739378037928,3.9774,2598.9,2598.8,0.76962]
[1739378038433,0.5651,2599.1,2599.0,0.76956]
[1739378038930,0.5651,2599.1,2598.6,6.5766713]
[1739378039229,0.7696,2598.9,2598.8,0.76961]
[1739378039430,3.7729,2599.1,2598.6,0.00576901]
[1739378039830,3.7729,2599.1,2598.8,0.76961]
[1739378040026,3.7729,2599.1,2598.6,4.0719913]
[1739378040331,3.7729,2599.1,2599.0,0.76956]
[1739378040531,3.7729,2599.1,2598.6,5.9961813]
[1739378040827,0.76964,2598.8,2598.6,0.00576901]
[1739378041129,0.76965,2598.7,2598.6,0.00576901]
[1739378042928,1.92429,2598.5,2597.9,0.76986]
[1739378043129,3.97764,2598.1,2597.8,0.7699]
[1739378043528,3.97764,2598.1,2597.9,0.76988]
[1739378043731,3.2078,2598.1,2597.9,1.34938378]
[1739378043934,0.00576901,2598.3,2597.9,0.57950378]
[1739378044332,0.00576901,2598.3,2598.0,0.57914915]
[1739378044538,0.00576901,2598.3,2598.2,0.7698]
[1739378045036,0.5686,2598.9,2598.7,0.76963]
[1739378045228,3.2078,2598.8,2598.7,0.76963]
[1739378045425,3.97742,2598.8,2598.3,4.06622229]
[1739378045740,3.97742,2598.8,2598.7,0.57914915]
[1739378046728,0.76966,2598.7,2598.4,0.76973]
[1739378046931,3.2078,2598.5,2598.3,0.76975]
[1739378047128,3.2078,2598.5,2598.0,4.06622229]
[1739378047333,3.2078,2598.5,2598.4,0.58029109]
[1739378047529,0.76966,2598.7,2598.4,1.35003109]
[1739378047935,3.2078,2598.8,2598.6,0.76967]
[1739378048138,3.2078,2598.8,2598.7,0.76965]
[1739378048726,3.2078,2598.8,2598.6,0.76966]
[1739378048926,3.2078,2598.8,2598.5,0.58029109]
[1739378049130,3.2078,2598.8,2598.6,0.58029109]
[1739378049330,3.2078,2598.8,2598.6,1.34996109]
[1739378049536,3.2078,2598.8,2598.7,0.58029109]
[1739378049840,3.97742,2598.8,2598.7,0.58029109]
[1739378050331,0.76966,2598.7,2598.5,0.76971]
[1739378050639,0.76968,2598.6,2598.4,0.76972]
[1739378050837,3.2078,2598.8,2598.1,3.2078]
[1739378051136,0.76965,2598.7,2598.5,0.7697]
[1739378051334,0.76965,2598.7,2598.2,0.57107928]
[1739378051633,0.76965,2598.7,2598.5,0.76971]
[1739378051835,0.76975,2598.4,2598.2,1.34086928]
[1739378052130,0.76982,2598.2,2597.9,0.76987]
[1739378052340,3.97762,2598.2,2597.9,0.76987]
[1739378052540,3.97762,2598.2,2598.0,1.34100803]
[1739378052933,3.2078,2598.2,2598.0,1.34100803]
[1739378053236,0.559,2598.3,2598.2,0.7698]
[1739378053534,3.2078,2598.5,2598.3,0.76974]
[1739378054028,3.97752,2598.5,2597.9,3.8139]
[1739378054338,3.2078,2598.5,2598.3,0.76975]
[1739378054534,3.2078,2598.5,2598.4,0.76974]
[1739378055040,3.2078,2598.8,2598.7,0.76963]
[1739378055438,3.2078,2598.8,2598.7,1.34065412]
[1739378056844,0.00576901,2599.0,2598.7,1.34065412]
[1739378056845,0.00576901,2599.0,2598.9,0.76959]
[1739378057045,3.2078,2599.6,2599.3,0.76945]
[1739378057235,3.2078,2599.6,2598.9,0.76958]
[1739378057544,3.2078,2599.2,2598.9,0.57102412]
[1739378058042,1.895,2599.5,2598.9,0.57102412]
[1739378058235,3.21356901,2599.3,2599.0,0.57102412]
[1739378058435,3.21356901,2599.3,2599.1,0.76952]
[1739378058942,3.21356901,2599.3,2599.0,0.57102412]
[1739378059142,3.98304901,2599.3,2599.0,1.34057412]
[1739378059444,3.98304901,2599.3,2599.1,0.57102412]
[1739378059643,3.21356901,2599.3,2599.1,0.57102412]
[1739378060140,3.21356901,2599.3,2598.8,0.00576901]
[1739378060346,3.2078,2599.0,2598.8,0.00576901]
[1739378060530,0.76959,2598.9,2598.8,0.00576901]
[1739378062441,5.87138,2599.0,2598.8,0.00576901]
[1739378062642,3.2078,2599.0,2598.8,0.00576901]
[1739378062946,0.5932,2599.2,2598.8,0.00576901]
[1739378063140,3.80806901,2599.3,2598.8,0.00576901]
[1739378063335,0.76951,2599.2,2598.9,0.76957]
[1739378063639,3.80806901,2599.3,2598.8,0.00576901]
[1739378063830,4.57755901,2599.3,2599.0,0.76955]
[1739378064036,3.80806901,2599.3,2598.8,0.00576901]
[1739378064342,3.80806901,2599.3,2599.1,0.76951]
[1739378064735,4.57755901,2599.3,2598.9,0.57087418]
[1739378064935,4.57755901,2599.3,2599.0,0.76956]
[1739378065733,3.21356901,2599.3,2598.8,0.00576901]
[1739378066051,0.00576901,2599.3,2599.2,0.7695]
[1739378066442,0.00576901,2599.3,2599.2,1.34031602]
[1739378067247,0.00576901,2599.3,2599.2,0.7695]
[1739378067749,0.00576901,2599.3,2599.2,4.83572229]
[1739378067947,0.31128845,2600.1,2600.0,0.76926]
[1739378068152,0.31128845,2600.1,2600.0,4.83548229]
[1739378068643,0.76911,2600.6,2600.3,0.76916]
[1739378068838,3.2078,2600.4,2600.0,4.06622229]
[1739378069039,0.76927,2600.0,2599.8,1.37141]
[1739378069244,3.2078,2600.4,2600.0,0.00576901]
[1739378069549,3.2078,2600.4,2600.2,0.76919]
[1739378070052,1.89976901,2600.7,2600.0,4.0719913]
[1739378070053,3.98264901,2600.7,2600.0,4.0719913]
[1739378070257,3.21356901,2600.7,2600.0,4.0719913]
[1739378070553,3.21356901,2600.7,2600.5,0.76911]
[1739378070942,3.98263901,2600.7,2600.4,0.76913]
[1739378071141,0.7691,2600.6,2600.3,0.76917]
[1739378071544,0.76912,2600.5,2600.2,0.76919]
[1739378071744,3.21356901,2600.7,2600.2,0.76919]
[1739378071946,0.7691,2600.6,2600.3,0.76916]
[1739378072750,3.21356901,2600.7,2600.3,0.76916]
[1739378072951,3.98264901,2600.7,2600.3,0.76916]
[1739378073150,3.98264901,2600.7,2600.4,0.76915]
[1739378073454,3.98264901,2600.7,2600.4,0.76914]
[1739378073654,3.21356901,2600.7,2600.5,0.7691]
[1739378073955,0.00576901,2600.7,2600.6,4.83531229]
[1739378074154,3.2078,2601.3,2600.6,4.06622229]
[1739378074560,3.2078,2601.3,2600.7,0.6022]
[1739378075052,3.2078,2601.3,2601.1,0.76894]
[1739378075247,1.92147,2602.3,2601.2,7.27402229]
[1739378075441,0.5959,2602.0,2601.9,0.7687]
[1739378075644,0.5959,2602.0,2601.8,4.83494229]
[1739378075844,0.5959,2602.0,2601.8,0.76872]
[1739378076154,0.5959,2602.0,2601.6,3.2078]
[1739378076354,0.5959,2602.0,2601.8,0.76873]
[1739378077053,0.5959,2602.0,2601.6,3.2078]
[1739378077254,0.76861,2602.3,2601.9,0.76868]
[1739378077453,2.66161,2602.3,2601.9,0.76868]
[1739378077655,1.893,2602.3,2601.6,3.2078]
[1739378077948,3.2078,2602.1,2601.5,0.00576901]
[1739378078147,0.76863,2602.2,2601.9,0.7687]
[1739378078344,0.76859,2602.3,2602.0,0.76867]
[1739378078544,2.66157,2602.4,2602.0,0.76867]
[1739378078746,1.893,2602.4,2601.6,3.2078]
[1739378079054,0.76869,2602.0,2601.6,3.97657]
[1739378079258,2.66169,2602.0,2601.6,3.97657]
[1739378079450,1.893,2602.0,2601.6,3.2078]
[1739378079755,0.76875,2601.8,2601.5,0.00576901]
[1739378079953,0.76877,2601.7,2601.5,0.00576901]
[1739378080149,3.8021,2601.9,2601.5,0.00576901]
[1739378080357,0.76879,2601.6,2601.5,0.00576901]
[1739378080851,9.2078,2601.6,2600.9,0.76899]
[1739378081051,1.892,2601.5,2600.6,7.27402229]
[1739378081253,0.76893,2601.2,2600.8,0.76901]
[1739378081551,3.2078,2601.3,2600.8,0.76901]
[1739378081752,3.2078,2601.3,2600.6,7.27402229]
[1739378082053,0.76892,2601.2,2600.9,0.76899]
[1739378082256,0.77468901,2601.2,2600.9,0.76899]
[1739378082452,0.00576901,2601.2,2600.7,0.00576901]
[1739378082655,0.77469901,2601.2,2600.8,0.769]
[1739378082844,0.76896,2601.1,2600.8,0.76902]
[1739378083050,0.76896,2601.1,2600.7,0.00576901]
[1739378083051,1.892,2601.0,2600.7,0.00576901]
[1739378083255,0.76903,2600.8,2600.7,0.00576901]
[1739378084455,0.76901,2600.9,2600.7,0.00576901]
[1739378084654,5.0998,2601.0,2600.7,0.00576901]
[1739378084957,0.76903,2600.8,2600.7,0.00576901]
[1739378086158,0.76923,2600.2,2599.9,3.2078]
[1739378086362,1.92265,2600.7,2599.9,3.2078]
[1739378086363,3.2078,2600.3,2599.9,3.2078]
[1739378086550,1.892,2600.4,2599.2,3.2078]
[1739378086551,3.2078,2600.0,2599.2,3.2078]
[1739378086751,2.66129,2599.9,2599.5,0.76939]
[1739378086953,2.66129,2599.9,2599.2,3.2078]
[1739378086954,1.892,2599.9,2599.6,0.76936]
[1739378087155,1.892,2599.9,2599.7,0.76935]
[1739378087355,1.892,2599.9,2599.7,0.76933]
[1739378087754,0.00576901,2600.0,2599.7,0.76933]
[1739378087954,1.89776901,2600.0,2599.9,0.76929]
[1739378088159,0.00576901,2600.0,2599.9,0.76929]
[1739378088963,0.00576901,2600.0,2599.8,0.7693]
[1739378089163,0.00576901,2600.0,2599.8,3.2078]
[1739378089360,0.00576901,2600.0,2599.9,0.76929]
[1739378090663,0.00576901,2600.0,2599.8,3.2078]
[1739378090664,0.00576901,2600.0,2599.5,3.77016901]
[1739378091058,3.21356901,2600.0,2599.5,3.98295901]
[1739378091264,0.76934,2599.8,2599.5,3.98295901]
[1739378091762,3.21356901,2600.0,2599.5,3.21356901]
[1739378091961,0.76931,2599.9,2599.6,0.76937]
[1739378092156,1.892,2599.8,2599.5,3.21356901]
[1739378092363,0.76938,2599.6,2599.5,0.00576901]
[1739378092762,3.97718,2599.6,2599.5,0.00576901]
[1739378094365,0.76951,2599.2,2598.9,3.2078]
[1739378094561,2.66151,2599.2,2599.0,0.76956]
[1739378094761,2.66151,2599.2,2598.9,3.97737]
[1739378095763,1.892,2599.2,2598.9,3.2078]
[1739378096268,1.892,2599.2,2599.1,0.76953]
[1739378096565,1.892,2599.2,2599.0,0.76955]
[1739378097362,2.66152,2599.2,2598.9,3.97736]
[1739378097758,1.892,2599.2,2599.0,0.76954]
[1739378098260,1.892,2599.2,2599.0,0.76956]
[1739378099069,1.892,2599.2,2599.1,0.76953]
[1739378099571,1.892,2599.2,2599.0,0.76955]
[1739378099770,1.892,2599.2,2599.0,0.76954]
[1739378099966,1.892,2599.2,2598.9,3.2078]
[1739378100165,1.892,2599.2,2599.1,0.76953]
[1739378100562,0.76959,2598.9,2598.8,0.00576901]
[1739378100866,0.76959,2598.9,2598.1,0.5635]
[1739378100867,3.2078,2598.9,2598.4,0.76973]
[1739378101058,3.2078,2598.9,2598.1,0.6079]
[1739378101059,1.92406,2598.8,2598.1,0.6079]
[1739378101266,0.76975,2598.4,2598.1,0.6079]
[1739378101567,0.76975,2598.4,2597.7,0.5849]
[1739378101568,0.76977,2598.3,2597.7,3.7927]
[1739378101873,0.00576901,2598.3,2598.0,3.2078]
[1739378102061,0.00576901,2598.3,2598.2,0.7698]
[1739378102762,0.00576901,2598.3,2598.0,3.2078]
[1739378102959,0.00576901,2598.3,2598.2,0.7698]
[1739378103863,0.77554901,2598.3,2598.0,3.2078]
[1739378104070,0.00576901,2598.3,2598.1,0.76982]
[1739378104970,0.00576901,2598.3,2598.0,0.76985]
[1739378105272,0.00576901,2598.3,2598.1,0.76981]
[1739378106165,0.00576901,2598.3,2597.7,3.80356901]
[1739378106366,0.77554901,2598.3,2598.0,0.76984]
[1739378107266,0.77554901,2598.3,2598.0,0.76983]
[1739378107466,0.00576901,2598.3,2598.1,0.76981]
[1739378107967,0.00576901,2598.3,2597.8,1.9248]
[1739378108171,0.00576901,2598.3,2598.1,0.76981]
[1739378108369,0.00576901,2598.3,2597.8,1.9248]
[1739378108674,0.00576901,2598.3,2598.2,0.7698]
[1739378109379,0.00576901,2598.3,2598.2,1.3482]
[1739378109766,1.893,2599.3,2598.6,1.92418]
[1739378109967,1.2157,2599.9,2599.4,0.76943]
[1739378110173,1.2157,2599.9,2599.3,3.2078]
[1739378110174,3.1087,2599.9,2599.3,3.2078]
[1739378110369,0.6096,2599.9,2599.3,3.2078]
[1739378110676,0.76924,2600.1,2599.8,0.76932]
[1739378110971,0.76916,2600.4,2599.9,3.2078]
[1739378111176,0.76916,2600.4,2600.0,0.76924]
[1739378111370,0.00576901,2600.2,2599.9,3.2078]
[1739378111575,0.00576901,2600.2,2600.1,0.76924]
[1739378117378,0.76898,2601.0,2600.1,6.76924]
[1739378117578,1.2157,2601.1,2600.1,6.76924]
[1739378117579,1.2157,2601.1,2600.9,0.76898]
[1739378117874,0.6096,2601.1,2600.9,0.76898]
[1739378118380,0.6096,2601.1,2600.9,0.76899]
[1739378118877,1.37855,2601.1,2600.8,0.769]
[1739378119377,0.6096,2601.1,2600.8,0.769]
[1739378119681,0.76899,2601.0,2600.7,0.77481901]
[1739378119890,0.76898,2601.0,2600.7,0.77481901]
[1739378120076,0.76898,2601.0,2600.7,0.00576901]
[1739378120270,4.06622229,2601.0,2600.7,0.00576901]
[1739378120475,3.97683,2600.8,2600.7,0.00576901]
[1739378120777,3.2078,2600.8,2600.7,0.00576901]
[1739378120981,0.6096,2601.1,2600.7,0.00576901]
[1739378121174,5.10556901,2601.3,2600.7,0.00576901]
[1739378121482,3.21356901,2601.3,2601.2,0.76891]
[1739378121682,0.00576901,2601.3,2601.2,0.76891]
[1739378121876,0.00431911,2601.8,2601.2,4.06622229]
[1739378122075,0.00431911,2601.8,2601.7,0.76876]
[1739378126086,0.76881,2601.6,2601.3,3.2078]
[1739378126279,0.76882,2601.5,2601.3,0.76887]
[1739378126587,0.00431911,2601.8,2601.4,0.76884]
[1739378126982,0.76882,2601.5,2601.3,0.76886]
[1739378127189,5.9924114,2601.8,2601.1,0.76893]
[1739378127389,0.7689,2601.3,2601.0,3.2078]
[1739378127591,0.76885,2601.4,2601.1,0.76894]
[1739378127886,0.76884,2601.5,2601.2,0.76891]
[1739378128093,0.76884,2601.5,2601.1,0.76892]
[1739378128392,0.76885,2601.4,2601.0,3.97676]
[1739378128579,3.0588,2601.7,2601.0,3.2078]
[1739378128783,7.27402229,2601.2,2600.7,0.00576901]
[1739378128979,0.76898,2601.0,2600.7,0.00576901]
[1739378129286,0.76899,2601.0,2600.7,0.00576901]
[1739378129487,1.89,2601.1,2600.7,0.00576901]
[1739378129683,3.2078,2600.8,2600.2,0.76919]
[1739378129890,0.76909,2600.6,2600.1,3.97701]
[1739378130084,1.89,2600.6,2600.1,3.2078]
[1739378130485,3.2078,2600.4,2599.8,3.2078]
[1739378130884,5.95622229,2600.6,2600.1,3.2078]
[1739378131191,0.00576901,2600.4,2600.1,3.2078]
[1739378131489,1.89576901,2600.4,2600.1,3.97701]
[1739378132191,1.89576901,2600.4,2600.2,0.7692]
[1739378132992,1.89576901,2600.4,2600.1,3.97702]
[1739378133185,1.89576901,2600.4,2600.2,0.76921]
[1739378133485,0.00576901,2600.4,2600.2,0.7692]
[1739378134289,0.00576901,2600.4,2600.2,0.76919]
[1739378134595,0.00576901,2600.4,2600.2,0.76921]
[1739378134992,0.00576901,2600.4,2600.3,0.76918]
[1739378140688,0.00576901,2600.4,2600.1,3.2078]
[1739378140995,0.00576901,2600.4,2600.3,0.76918]
[1739378142291,0.00576901,2600.4,2600.3,1.34697037]
[1739378142483,0.5795,2601.1,2600.3,0.57779037]
[1739378142684,0.5887,2601.3,2601.0,3.2078]
[1739378142895,1.89,2601.6,2601.5,0.76882]
[1739378143097,1.89,2601.6,2601.5,3.97662]
[1739378143792,2.65879,2601.6,2601.5,3.97662]
[1739378144090,1.89,2601.6,2601.5,3.97662]
[1739378144689,2.65879,2601.6,2601.5,3.97662]
[1739378144887,0.76885,2601.4,2601.3,0.00576901]
[1739378145093,5.98831229,2601.5,2600.9,3.2078]
[1739378145291,0.603,2601.3,2600.9,3.97679]
[1739378145493,0.76891,2601.2,2600.9,3.97679]
[1739378145692,1.37184,2601.1,2600.9,3.97679]
[1739378145887,0.6029,2601.1,2600.9,3.2078]
[1739378146201,2.4929,2601.1,2600.7,0.00576901]
[1739378146701,4.06622229,2600.9,2600.6,3.2078]
[1739378146896,0.76907,2600.7,2600.4,0.76914]
[1739378147599,1.32665,2600.8,2600.4,0.76913]
[1739378147794,2.4929,2601.1,2600.4,0.76913]
[1739378147995,3.0505,2601.1,2600.4,0.76913]
[1739378148296,0.7691,2600.6,2600.3,3.98272901]
[1739378148688,0.76915,2600.4,2600.3,3.21356901]
[1739378148892,0.76915,2600.4,2600.3,0.00576901]
[1739378149996,0.5999,2600.4,2600.3,0.00576901]
[1739378150391,1.36905,2600.4,2600.3,0.00576901]
[1739378151296,0.5999,2600.4,2600.3,0.00576901]
[1739378152199,1.36905,2600.4,2600.3,0.00576901]
[1739378154403,1.36905,2600.4,2599.3,7.11392229]
[1739378154404,0.76934,2599.8,2599.3,4.3655]
[1739378154599,1.89,2600.0,2599.6,3.2078]
[1739378154804,2.65929,2600.0,2599.8,0.7693]
[1739378155406,1.89,2600.1,2600.0,0.76925]
[1739378155601,1.89,2600.1,2599.9,3.97707]
[1739378155803,1.89,2600.1,2599.6,3.21356901]
[1739378155997,0.76931,2599.9,2599.7,0.76934]
[1739378156399,0.76927,2600.0,2599.8,0.76931]
[1739378156805,0.76927,2600.0,2599.6,3.21356901]
[1739378157199,0.76927,2600.0,2599.8,0.7693]
[1739378158203,1.89,2600.1,2599.6,3.21356901]
[1739378158204,0.76931,2599.9,2599.7,0.76934]
[1739378158705,0.76928,2600.0,2599.8,0.76931]
[1739378159101,0.76929,2599.9,2599.8,0.76931]
[1739378159304,0.76929,2600.0,2599.8,0.76931]
[1739378159500,1.89,2600.1,2599.6,3.21356901]
[1739378159811,0.77498901,2600.2,2600.0,0.76926]
[1739378160111,0.00576901,2600.2,2600.1,3.97704]
[1739378160700,0.769,2600.9,2600.3,1.92294]
[1739378160902,0.76895,2601.1,2600.9,0.76898]
[1739378161103,1.2056,2601.3,2600.5,5.13057]
[1739378161104,4.4134,2601.3,2600.5,3.2078]
[1739378161310,4.4134,2601.3,2600.2,4.3676]
[1739378161608,7.27402229,2600.9,2600.2,3.7974]
[1739378161809,0.7691,2600.6,2600.4,0.76913]
[1739378162215,11.08656229,2600.9,2600.2,3.2078]
[1739378162504,11.68326229,2600.9,2600.2,3.2078]
[1739378162699,0.76913,2600.5,2600.3,0.76918]
[1739378162903,0.76913,2600.5,2600.2,3.97699]
[1739378163106,0.76913,2600.5,2600.3,0.76918]
[1739378163504,3.2078,2600.9,2600.2,3.2078]
[1739378163705,1.89,2600.9,2600.7,0.76904]
[1739378163906,0.77474901,2601.0,2600.7,0.76904]
[1739378164111,0.769,2600.9,2600.7,0.76904]
[1739378164413,0.769,2600.9,2600.4,0.6028]
[1739378164414,0.76904,2600.8,2600.4,0.6028]
[1739378164619,0.76901,2600.9,2600.7,0.76905]
[1739378164812,0.00576901,2601.0,2600.6,0.76908]
[1739378165015,3.2078,2600.9,2600.5,3.2078]
[1739378165313,7.27402229,2600.9,2600.1,3.2078]
[1739378165507,1.89,2600.8,2600.7,0.76906]
[1739378165911,0.00576901,2601.0,2600.8,0.76902]
[1739378166115,0.00576901,2601.0,2600.9,0.769]
[1739378166506,0.3102501,2601.7,2600.9,10.06622229]
[1739378166507,0.61,2601.7,2600.9,10.06622229]
[1739378166704,3.2078,2601.8,2601.6,0.76877]
[1739378166911,3.2078,2601.8,2601.3,0.76885]
[1739378167119,0.76883,2601.5,2601.2,3.97669]
[1739378167319,0.7688,2601.6,2601.3,0.76887]
[1739378167505,0.76878,2601.7,2601.4,0.76885]
[1739378167711,0.00576901,2601.7,2601.5,0.76881]
[1739378168207,0.00576901,2601.7,2601.6,0.76879]
[1739378168606,0.00576901,2601.7,2601.5,0.7688]
[1739378168905,0.00576901,2601.7,2601.2,3.78876901]
[1739378169110,0.00576901,2601.7,2601.2,3.98247901]
[1739378169407,0.00576901,2601.7,2601.2,3.21356901]
[1739378169815,0.76887,2601.4,2601.2,3.21356901]
[1739378170316,0.76888,2601.3,2601.2,3.21356901]
[1739378170523,0.76887,2601.4,2601.2,0.00576901]
[1739378171016,0.76888,2601.3,2601.2,0.00576901]
[1739378171220,1.92228,2601.2,2600.5,0.7691]
[1739378171409,0.76901,2600.9,2600.6,0.76906]
[1739378171609,0.5718,2601.3,2600.7,3.2078]
[1739378171815,0.76894,2601.1,2600.9,0.76899]
[1739378172011,3.7796,2601.3,2601.0,0.76895]
[1739378172012,1.889,2601.2,2601.0,0.76895]
[1739378172324,1.889,2601.2,2601.1,0.76894]
[1739378172710,1.889,2601.2,2600.8,0.00576901]
[1739378173416,2.65792,2601.2,2600.9,0.76898]
[1739378173917,1.889,2601.2,2600.8,0.00576901]
[1739378174117,1.889,2601.2,2601.0,0.76895]
[1739378174322,0.00576901,2601.7,2601.0,3.2078]
[1739378174620,0.00576901,2601.7,2601.5,0.7688]
[1739378175112,0.00576901,2601.7,2601.3,3.2078]
[1739378175312,0.77453901,2601.7,2601.5,0.76881]
[1739378175917,0.00576901,2601.7,2601.3,3.2078]
[1739378176213,0.77453901,2601.7,2601.5,0.76881]
[1739378176613,0.00576901,2601.7,2601.3,3.2078]
[1739378176818,0.76881,2601.6,2601.3,3.2078]
[1739378177009,0.00576901,2601.7,2601.3,3.2078]
[1739378177214,0.00576901,2601.7,2601.6,0.76879]
[1739378177519,0.00576901,2601.7,2601.6,3.97659]
[1739378178021,0.76857,2602.4,2602.2,0.7686]
[1739378178222,0.5715,2602.5,2602.0,3.2078]
[1739378178420,0.76859,2602.3,2602.1,0.76862]
[1739378179125,0.5715,2602.5,2602.4,0.76856]
[1739378179317,0.57726901,2602.5,2602.4,0.76856]
[1739378179620,0.00576901,2602.5,2602.4,0.76856]
[1739378180116,0.76836,2603.1,2602.9,0.76841]
[1739378180319,0.5646,2603.4,2603.2,0.76829]
[1739378180728,0.76825,2603.5,2603.2,0.76829]
[1739378181018,1.94815493,2603.7,2603.1,3.97614]
[1739378181019,0.76827,2603.4,2603.1,3.97614]
[1739378181225,0.00576901,2603.6,2603.1,3.2078]
[1739378181913,0.00576901,2603.6,2603.4,3.2078]
[1739378182114,0.00576901,2603.6,2603.5,0.76823]
[1739378183528,0.30768083,2605.1,2603.5,6.0]
[1739378183825,20.134,2605.2,2604.5,0.76792]
[1739378184017,20.134,2605.2,2604.4,3.2078]
[1739378184018,3.7981,2605.3,2604.6,3.2078]
[1739378184226,0.5903,2605.3,2604.9,3.2078]
[1739378184426,0.76768,2605.4,2604.9,3.9756]
[1739378184617,0.76765,2605.5,2605.0,0.76779]
[1739378184812,3.2078,2605.6,2605.0,0.76778]
[1739378185014,1.35789,2605.7,2605.2,3.97552]
[1739378185317,0.76767,2605.4,2605.2,3.2078]